[Event "ETCC Women 2013"]
[Site "Warsaw"]
[Date "2013.11.14"]
[Round "6"]
[White "Dzagnidze, Nana"]
[Black "Lagno, Kateryna"]
[Result "1-0"]
[ECO "D82"]
[WhiteElo "2556"]
[BlackElo "2542"]
[PlyCount "103"]
[EventDate "2013.??.??"]
[EventCountry "POL"]
[WhiteTeam "Georgia"]
[BlackTeam "Ukraine"]
[WhiteTeamCountry "GEO"]
[BlackTeamCountry "UKR"]
[TimeControl "40/5400+30:1800+30"]

1. d4 {[%emt 0:00:00]} Nf6 {[%emt 0:00:00]} 2. c4 {[%emt 0:00:00]} g6 {[%emt 0:
00:00]} 3. Nc3 {[%emt 0:00:03]} d5 {[%emt 0:00:04]} 4. Bf4 {[%emt 0:00:17]} Bg7
{[%emt 0:00:51]} 5. e3 {[%emt 0:00:07]} c5 {[%emt 0:00:35]} 6. dxc5 {[%emt 0:
00:15]} Qa5 {[%emt 0:00:08]} 7. Rc1 {[%emt 0:01:15]} dxc4 {[%emt 0:00:43]} 8.
Bxc4 {[%emt 0:00:21]} O-O {[%emt 0:00:51]} 9. Nf3 {[%emt 0:00:32]} Qxc5 {[%emt
0:00:47]} 10. Bb3 {[%emt 0:00:51]} Nc6 {[%emt 0:00:45]} 11. O-O {[%emt 0:00:30]
} Qa5 {[%emt 0:00:11]} 12. h3 {[%emt 0:00:18]} Bf5 {[%emt 0:00:51]} 13. Bc4 {
[%emt 0:00:40]} Rad8 {[%emt 0:05:06]} 14. Qb3 {[%emt 0:00:23]} Qb4 {[%emt 0:00:
30]} 15. Rcd1 {[%emt 0:03:26]} Qxb3 {[%emt 0:04:07]} 16. Bxb3 {[%emt 0:00:06]}
Rxd1 {[%emt 0:04:22]} 17. Rxd1 {[%emt 0:00:08]} Rd8 {[%emt 0:01:45]} 18. Rxd8+
{[%emt 0:03:39]} Nxd8 {[%emt 0:00:10]} 19. Bc7 {[%emt 0:00:34]} Ne6 {[%emt 0:
08:27]} 20. Bb8 {[%emt 0:00:18]} Nc5 {[%emt 0:04:48]} 21. Bxa7 {[%emt 0:38:06]}
Nxb3 {[%emt 0:00:25]} 22. axb3 {[%emt 0:00:02]} Nd7 {[%emt 0:09:22]} 23. Bd4 {
[%emt 0:10:58]} e5 {[%emt 0:02:36]} 24. Ba7 {[%emt 0:00:06]} Bf8 {[%emt 0:12:
38]} 25. Kf1 {[%emt 0:09:16]} Be6 {[%emt 0:03:56]} 26. Nd2 {[%emt 0:00:32]} Bc5
{[%emt 0:02:59]} 27. Bxc5 {[%emt 0:00:53]} Nxc5 {[%emt 0:00:02]} 28. Nce4 {
[%emt 0:07:39]} Nd3 {[%emt 0:12:51]} 29. Nd6 {[%emt 0:00:53]} Bd5 {[%emt 0:01:
54]} 30. N2c4 {[%emt 0:01:11]} f6 {[%emt 0:06:42]} 31. Na5 {[%emt 0:02:30]} b6
{[%emt 0:01:38]} 32. Nac4 {[%emt 0:01:35]} Bxc4 {[%emt 0:00:58]} 33. Nxc4 {
[%emt 0:03:17]} b5 {[%emt 0:00:03]} 34. Nd6 {[%emt 0:00:05]} b4 {[%emt 0:00:06]
} 35. Ke2 {[%emt 0:01:09]} Nc5 {[%emt 0:01:10]} 36. f3 {[%emt 0:00:52]} Kf8 {
[%emt 0:04:05]} 37. Ne4 {[%emt 0:01:08]} Nd7 {[%emt 0:01:32]} 38. Kd3 {[%emt 0:
00:04]} f5 {[%emt 0:00:12]} 39. Nd2 {[%emt 0:00:17]} Nb6 {[%emt 0:00:29]} 40.
Nc4 {[%emt 0:00:00]} Nd7 {[%emt 0:00:00]} 41. Na5 {[%emt 0:00:38]} Ke7 {[%emt
0:09:25]} 42. Kc4 {[%emt 0:09:31]} Kd6 {[%emt 0:04:05]} 43. Kxb4 {[%emt 0:01:
22]} Kd5 {[%emt 0:00:17]} 44. Nc4 {[%emt 0:07:42]} g5 {[%emt 0:02:23]} 45. Kc3
{[%emt 0:05:11]} e4 {[%emt 0:05:21]} 46. f4 {[%emt 0:08:48]} Nc5 {[%emt 0:07:
53]} 47. fxg5 {[%emt 0:00:22]} Ne6 {[%emt 0:01:35]} 48. h4 {[%emt 0:00:45]} f4
{[%emt 0:00:21]} 49. exf4 {[%emt 0:00:12]} Nxf4 {[%emt 0:00:03]} 50. Ne3+ {
[%emt 0:00:11]} Ke5 {[%emt 0:00:02]} 51. b4 {[%emt 0:00:49]} Ne2+ {[%emt 0:08:
19]} 52. Kc4 {[%emt 0:00:21]} 1-0

[Event "ETCC Women 2013"]
[Site "Warsaw"]
[Date "2013.11.14"]
[Round "6"]
[White "Efroimski, Marsel"]
[Black "Dolzhikova, Olga"]
[Result "1-0"]
[ECO "C42"]
[WhiteElo "2313"]
[BlackElo "2198"]
[PlyCount "73"]
[EventDate "2013.??.??"]
[EventCountry "POL"]
[WhiteTeam "Israel"]
[BlackTeam "Norway"]
[WhiteTeamCountry "ISR"]
[BlackTeamCountry "NOR"]
[TimeControl "40/5400+30:1800+30"]

1. e4 {[%emt 0:00:00]} e5 {[%emt 0:00:00]} 2. Nf3 {[%emt 0:00:00]} Nf6 {[%emt
0:00:00]} 3. Nc3 {[%emt 0:00:00]} Bb4 {[%emt 0:00:12]} 4. Nxe5 {[%emt 0:00:00]}
O-O {[%emt 0:00:09]} 5. Nd3 {[%emt 0:00:10]} Bxc3 {[%emt 0:00:37]} 6. dxc3 {
[%emt 0:00:05]} Nxe4 {[%emt 0:01:23]} 7. Nf4 {[%emt 0:00:08]} Re8 {[%emt 0:03:
09]} 8. Be2 {[%emt 0:00:05]} d6 {[%emt 0:00:43]} 9. O-O {[%emt 0:00:07]} Nd7 {
[%emt 0:00:58]} 10. c4 {[%emt 0:01:14]} Ndf6 {[%emt 0:03:49]} 11. f3 {[%emt 0:
00:41]} Nc5 {[%emt 0:00:30]} 12. Rf2 {[%emt 0:08:56]} Qe7 {[%emt 0:05:40]} 13.
Qd4 {[%emt 0:05:34]} Bf5 {[%emt 0:14:23]} 14. b3 {[%emt 0:20:30]} Bxc2 {[%emt
0:04:06]} 15. Bb2 {[%emt 0:00:51]} Qe5 {[%emt 0:12:33]} 16. Bf1 {[%emt 0:11:38]
} Bg6 {[%emt 0:14:37]} 17. Qd2 {[%emt 0:13:11]} Qe7 {[%emt 0:08:03]} 18. Re2 {
[%emt 0:03:31]} Qd8 {[%emt 0:01:59]} 19. Rae1 {[%emt 0:01:50]} Rxe2 {[%emt 0:
01:45]} 20. Qxe2 {[%emt 0:14:30]} Nh5 {[%emt 0:02:40]} 21. Nd5 {[%emt 0:05:04]}
c6 {[%emt 0:03:10]} 22. Nc7 {[%emt 0:06:18]} Rc8 {[%emt 0:03:59]} 23. Qe8+ {
[%emt 0:01:02]} Qxe8 {[%emt 0:00:04]} 24. Rxe8+ {[%emt 0:00:05]} Rxe8 {[%emt 0:
00:02]} 25. Nxe8 {[%emt 0:00:05]} d5 {[%emt 0:06:01]} 26. cxd5 {[%emt 0:02:50]}
cxd5 {[%emt 0:00:03]} 27. b4 {[%emt 0:01:08]} Ne6 {[%emt 0:04:58]} 28. Nd6 {
[%emt 0:00:17]} b6 {[%emt 0:01:36]} 29. Nc8 {[%emt 0:00:19]} d4 {[%emt 0:01:54]
} 30. Nxa7 {[%emt 0:00:20]} Nhf4 {[%emt 0:01:59]} 31. Nc8 {[%emt 0:00:47]} Nd5
{[%emt 0:00:42]} 32. a3 {[%emt 0:01:57]} Bc2 {[%emt 0:01:11]} 33. Bc4 {[%emt 0:
00:48]} d3 {[%emt 0:00:57]} 34. Bc1 {[%emt 0:00:18]} Nc3 {[%emt 0:00:18]} 35.
Kf2 {[%emt 0:00:27]} Nb1 {[%emt 0:02:22]} 36. Ke3 {[%emt 0:01:01]} Nd8 {[%emt
0:00:50]} 37. Bxd3 {[%emt 0:00:17]} 1-0

[Event "ETCC Women 2013"]
[Site "Warsaw"]
[Date "2013.11.14"]
[Round "6"]
[White "Exler, Veronika"]
[Black "Orehek, Spela"]
[Result "1-0"]
[ECO "A41"]
[WhiteElo "2147"]
[BlackElo "2026"]
[PlyCount "81"]
[EventDate "2013.??.??"]
[EventCountry "POL"]
[WhiteTeam "Austria"]
[BlackTeam "Slovenia"]
[WhiteTeamCountry "AUT"]
[BlackTeamCountry "SLO"]
[TimeControl "40/5400+30:1800+30"]

1. d4 {[%emt 0:00:00]} d6 {[%emt 0:00:00]} 2. Nf3 {[%emt 0:02:14]} g6 {[%emt 0:
00:13]} 3. c4 {[%emt 0:00:12]} Bg7 {[%emt 0:01:04]} 4. Nc3 {[%emt 0:00:07]} Nd7
{[%emt 0:03:11]} 5. e4 {[%emt 0:01:51]} Ngf6 {[%emt 0:00:48]} 6. Be2 {[%emt 0:
00:55]} O-O {[%emt 0:00:19]} 7. O-O {[%emt 0:00:17]} e5 {[%emt 0:00:21]} 8. Be3
{[%emt 0:00:50]} Qe7 {[%emt 0:17:42]} 9. d5 {[%emt 0:04:50]} Nh5 {[%emt 0:02:
57]} 10. Ne1 {[%emt 0:13:12]} Nf4 {[%emt 0:05:29]} 11. Nd3 {[%emt 0:02:11]}
Nxd3 {[%emt 0:04:10]} 12. Qxd3 {[%emt 0:01:29]} f5 {[%emt 0:00:11]} 13. f3 {
[%emt 0:00:40]} f4 {[%emt 0:18:12]} 14. Bf2 {[%emt 0:00:10]} Nf6 {[%emt 0:00:
33]} 15. Rac1 {[%emt 0:01:30]} g5 {[%emt 0:01:42]} 16. c5 {[%emt 0:24:18]} Ne8
{[%emt 0:08:35]} 17. Nb5 {[%emt 0:01:34]} a6 {[%emt 0:04:21]} 18. Qa3 {[%emt 0:
07:10]} h5 {[%emt 0:03:35]} 19. Na7 {[%emt 0:11:54]} Bd7 {[%emt 0:02:51]} 20.
c6 {[%emt 0:01:34]} bxc6 {[%emt 0:02:07]} 21. Nxc6 {[%emt 0:00:06]} Qf6 {[%emt
0:00:57]} 22. h3 {[%emt 0:04:11]} Rf7 {[%emt 0:01:33]} 23. Qb3 {[%emt 0:00:41]}
Bf8 {[%emt 0:02:49]} 24. Qb7 {[%emt 0:08:06]} Rc8 {[%emt 0:00:11]} 25. Nb8 {
[%emt 0:04:33]} Rxb8 {[%emt 0:00:31]} 26. Qxb8 {[%emt 0:00:06]} g4 {[%emt 0:00:
14]} 27. fxg4 {[%emt 0:00:32]} hxg4 {[%emt 0:00:32]} 28. Bxg4 {[%emt 0:00:28]}
Bxg4 {[%emt 0:03:30]} 29. hxg4 {[%emt 0:00:04]} Qe7 {[%emt 0:03:59]} 30. Rc3 {
[%emt 0:01:55]} Rg7 {[%emt 0:04:29]} 31. Qc8 {[%emt 0:02:36]} Rg6 {[%emt 0:00:
12]} 32. Rh3 {[%emt 0:01:29]} Nf6 {[%emt 0:03:50]} 33. Bh4 {[%emt 0:00:35]} Qf7
{[%emt 0:03:39]} 34. Bxf6 {[%emt 0:00:08]} Rxf6 {[%emt 0:00:11]} 35. Rc3 {
[%emt 0:02:31]} c5 {[%emt 0:00:55]} 36. dxc6 {[%emt 0:00:54]} Qa7+ {[%emt 0:01:
02]} 37. Rf2 {[%emt 0:00:26]} Rh6 {[%emt 0:00:18]} 38. Qb7 {[%emt 0:01:26]} Qd4
{[%emt 0:01:05]} 39. Qb3+ {[%emt 0:00:02]} Kg7 {[%emt 0:00:30]} 40. Qc2 {[%emt
0:00:00]} f3 {[%emt 0:00:00]} 41. Rcxf3 {[%emt 0:02:55]} 1-0

[Event "ETCC Women 2013"]
[Site "Warsaw"]
[Date "2013.11.14"]
[Round "6"]
[White "Fakhiridou, Ekaterini"]
[Black "Degrande, Marigje"]
[Result "1-0"]
[ECO "B08"]
[WhiteElo "2168"]
[BlackElo "1867"]
[PlyCount "67"]
[EventDate "2013.??.??"]
[EventCountry "POL"]
[WhiteTeam "Greece"]
[BlackTeam "Belgium"]
[WhiteTeamCountry "GRE"]
[BlackTeamCountry "BEL"]
[TimeControl "40/5400+30:1800+30"]

1. e4 {[%emt 0:00:00]} d6 {[%emt 0:00:00]} 2. d4 {[%emt 0:00:00]} g6 {[%emt 0:
00:00]} 3. Nc3 {[%emt 0:00:42]} Bg7 {[%emt 0:00:00]} 4. Nf3 {[%emt 0:01:19]}
Nf6 {[%emt 0:00:20]} 5. h3 {[%emt 0:00:29]} c6 {[%emt 0:00:20]} 6. Be3 {[%emt
0:02:05]} Qc7 {[%emt 0:02:22]} 7. Qd2 {[%emt 0:05:19]} O-O {[%emt 0:03:41]} 8.
Bh6 {[%emt 0:03:22]} e5 {[%emt 0:01:34]} 9. Bxg7 {[%emt 0:04:05]} Kxg7 {[%emt
0:00:10]} 10. O-O-O {[%emt 0:01:06]} b5 {[%emt 0:01:41]} 11. dxe5 {[%emt 0:16:
41]} dxe5 {[%emt 0:00:18]} 12. Qe3 {[%emt 0:00:51]} Nbd7 {[%emt 0:07:32]} 13.
g4 {[%emt 0:06:35]} b4 {[%emt 0:14:01]} 14. Nb1 {[%emt 0:03:04]} a5 {[%emt 0:
06:11]} 15. Nfd2 {[%emt 0:04:14]} Nb6 {[%emt 0:11:27]} 16. Nc4 {[%emt 0:02:14]}
Nxc4 {[%emt 0:13:52]} 17. Bxc4 {[%emt 0:00:09]} Qe7 {[%emt 0:00:18]} 18. f3 {
[%emt 0:02:57]} Be6 {[%emt 0:03:16]} 19. Qe2 {[%emt 0:07:13]} a4 {[%emt 0:03:
17]} 20. h4 {[%emt 0:01:57]} h5 {[%emt 0:01:26]} 21. g5 {[%emt 0:04:40]} Nd7 {
[%emt 0:01:36]} 22. Bxe6 {[%emt 0:03:37]} Qxe6 {[%emt 0:00:28]} 23. Qd2 {[%emt
0:00:43]} Rfd8 {[%emt 0:09:42]} 24. Qxb4 {[%emt 0:00:56]} Rdb8 {[%emt 0:03:34]}
25. Qa3 {[%emt 0:01:03]} Nb6 {[%emt 0:01:22]} 26. Rd6 {[%emt 0:01:13]} Qe8 {
[%emt 0:00:14]} 27. Qc3 {[%emt 0:01:40]} Kg8 {[%emt 0:09:21]} 28. Rhd1 {[%emt
0:02:12]} Rc8 {[%emt 0:01:04]} 29. Na3 {[%emt 0:01:48]} Rab8 {[%emt 0:03:02]}
30. Nc4 {[%emt 0:03:00]} Nxc4 {[%emt 0:00:19]} 31. Qxc4 {[%emt 0:00:02]} c5 {
[%emt 0:00:12]} 32. Rxg6+ {[%emt 0:00:17]} Kh7 {[%emt 0:01:02]} 33. Rgd6 {
[%emt 0:01:29]} Rb4 {[%emt 0:01:47]} 34. Qa6 {[%emt 0:01:11]} 1-0

[Event "ETCC Women 2013"]
[Site "Warsaw"]
[Date "2013.11.14"]
[Round "6"]
[White "Franciskovic, Borka"]
[Black "Ziaziulkina, Nastassia"]
[Result "1/2-1/2"]
[ECO "A06"]
[WhiteElo "2263"]
[BlackElo "2350"]
[PlyCount "82"]
[EventDate "2013.??.??"]
[EventCountry "POL"]
[WhiteTeam "Croatia"]
[BlackTeam "Belarus"]
[WhiteTeamCountry "CRO"]
[BlackTeamCountry "BLR"]
[TimeControl "40/5400+30:1800+30"]

1. Nf3 {[%emt 0:00:00]} d5 {[%emt 0:00:00]} 2. g3 {[%emt 0:00:00]} Nf6 {[%emt
0:00:00]} 3. Bg2 {[%emt 0:00:00]} c6 {[%emt 0:00:00]} 4. O-O {[%emt 0:00:04]}
Bf5 {[%emt 0:00:28]} 5. d3 {[%emt 0:01:18]} e6 {[%emt 0:00:42]} 6. c4 {[%emt 0:
01:52]} dxc4 {[%emt 0:01:01]} 7. dxc4 {[%emt 0:00:35]} Qxd1 {[%emt 0:00:05]} 8.
Rxd1 {[%emt 0:00:03]} Nbd7 {[%emt 0:00:07]} 9. Nc3 {[%emt 0:04:07]} h6 {[%emt
0:07:52]} 10. Be3 {[%emt 0:20:59]} Bc5 {[%emt 0:06:33]} 11. Bxc5 {[%emt 0:05:
59]} Nxc5 {[%emt 0:00:04]} 12. Nd4 {[%emt 0:01:54]} O-O-O {[%emt 0:08:55]} 13.
Nxf5 {[%emt 0:12:25]} exf5 {[%emt 0:00:07]} 14. Bh3 {[%emt 0:01:29]} g6 {[%emt
0:01:34]} 15. f3 {[%emt 0:02:01]} Kc7 {[%emt 0:04:04]} 16. Kf2 {[%emt 0:05:27]}
a5 {[%emt 0:02:22]} 17. b3 {[%emt 0:04:54]} Rhe8 {[%emt 0:03:06]} 18. Rxd8 {
[%emt 0:05:06]} Rxd8 {[%emt 0:00:28]} 19. Rd1 {[%emt 0:01:24]} Rxd1 {[%emt 0:
10:16]} 20. Nxd1 {[%emt 0:00:04]} Kd6 {[%emt 0:00:09]} 21. Ke3 {[%emt 0:05:24]}
Nfd7 {[%emt 0:10:09]} 22. Kd2 {[%emt 0:05:23]} b5 {[%emt 0:07:50]} 23. cxb5 {
[%emt 0:04:39]} cxb5 {[%emt 0:00:22]} 24. Nb2 {[%emt 0:06:21]} Ne5 {[%emt 0:05:
21]} 25. Bg2 {[%emt 0:01:32]} Nc6 {[%emt 0:01:26]} 26. Nd1 {[%emt 0:03:23]} a4
{[%emt 0:19:15]} 27. Nc3 {[%emt 0:01:42]} axb3 {[%emt 0:00:04]} 28. Nxb5+ {
[%emt 0:00:14]} Kd7 {[%emt 0:01:13]} 29. axb3 {[%emt 0:00:21]} Nxb3+ {[%emt 0:
00:03]} 30. Ke3 {[%emt 0:00:55]} Nb4 {[%emt 0:03:28]} 31. Nc3 {[%emt 0:00:27]}
Kd6 {[%emt 0:02:06]} 32. f4 {[%emt 0:01:08]} Kc5 {[%emt 0:00:54]} 33. Kf2 {
[%emt 0:00:43]} Kd4 {[%emt 0:01:27]} 34. Nb5+ {[%emt 0:01:17]} Kc5 {[%emt 0:00:
04]} 35. Nc3 {[%emt 0:00:59]} Kd4 {[%emt 0:04:31]} 36. Nb5+ {[%emt 0:00:23]}
Kc5 {[%emt 0:00:03]} 37. Nc3 {[%emt 0:00:21]} Kd4 {[%emt 0:00:46]} 38. Nb5+ {
[%emt 0:00:33]} Kc5 {[%emt 0:00:16]} 39. Nc3 {[%emt 0:00:16]} Kc4 {[%emt 0:01:
01]} 40. Na4 {[%emt 0:00:00]} Kb5 {[%emt 0:00:00]} 41. Nc3+ {[%emt 0:03:27]}
Kc4 {[%emt 0:00:43]} 1/2-1/2

[Event "ETCC Women 2013"]
[Site "Warsaw"]
[Date "2013.11.14"]
[Round "6"]
[White "Gara, Ticia"]
[Black "L'Ami, Alina"]
[Result "1/2-1/2"]
[ECO "B52"]
[WhiteElo "2350"]
[BlackElo "2361"]
[PlyCount "79"]
[EventDate "2013.??.??"]
[EventCountry "POL"]
[WhiteTeam "Hungary"]
[BlackTeam "Romania"]
[WhiteTeamCountry "HUN"]
[BlackTeamCountry "ROU"]
[TimeControl "40/5400+30:1800+30"]

1. e4 {[%emt 0:00:00]} c5 {[%emt 0:00:00]} 2. Nf3 {[%emt 0:00:00]} d6 {[%emt 0:
00:00]} 3. Bb5+ {[%emt 0:00:00]} Bd7 {[%emt 0:00:00]} 4. Bxd7+ {[%emt 0:00:07]}
Qxd7 {[%emt 0:00:06]} 5. c4 {[%emt 0:00:31]} Nf6 {[%emt 0:01:10]} 6. Nc3 {
[%emt 0:00:15]} g6 {[%emt 0:00:20]} 7. d4 {[%emt 0:00:57]} cxd4 {[%emt 0:00:16]
} 8. Nxd4 {[%emt 0:00:11]} Bg7 {[%emt 0:01:29]} 9. f3 {[%emt 0:00:34]} O-O {
[%emt 0:00:15]} 10. Be3 {[%emt 0:01:52]} Rc8 {[%emt 0:08:14]} 11. b3 {[%emt 0:
04:22]} a6 {[%emt 0:01:38]} 12. a4 {[%emt 0:00:49]} Qd8 {[%emt 0:05:43]} 13.
O-O {[%emt 0:01:07]} Nc6 {[%emt 0:06:02]} 14. Qd2 {[%emt 0:04:03]} Qa5 {[%emt
0:10:39]} 15. Nde2 {[%emt 0:03:15]} e6 {[%emt 0:13:23]} 16. Rfd1 {[%emt 0:14:
20]} Rd8 {[%emt 0:05:00]} 17. Rab1 {[%emt 0:12:05]} Rd7 {[%emt 0:06:57]} 18.
Qe1 {[%emt 0:10:52]} d5 {[%emt 0:06:17]} 19. exd5 {[%emt 0:15:49]} exd5 {[%emt
0:00:26]} 20. Nxd5 {[%emt 0:03:25]} Qxe1+ {[%emt 0:01:29]} 21. Rxe1 {[%emt 0:
00:03]} Nxd5 {[%emt 0:00:06]} 22. cxd5 {[%emt 0:00:07]} Nb4 {[%emt 0:07:13]}
23. Red1 {[%emt 0:10:54]} Re8 {[%emt 0:05:54]} 24. Bc5 {[%emt 0:01:21]} Nxd5 {
[%emt 0:00:49]} 25. Nf4 {[%emt 0:02:06]} Red8 {[%emt 0:04:23]} 26. Nxd5 {[%emt
0:00:18]} Rxd5 {[%emt 0:00:02]} 27. Rxd5 {[%emt 0:00:06]} Rxd5 {[%emt 0:00:04]}
28. Be3 {[%emt 0:00:55]} Be5 {[%emt 0:03:13]} 29. f4 {[%emt 0:02:39]} Rd3 {
[%emt 0:03:16]} 30. Kf2 {[%emt 0:00:36]} Bd4 {[%emt 0:01:14]} 31. Bxd4 {[%emt
0:00:51]} Rxd4 {[%emt 0:00:01]} 32. Ke3 {[%emt 0:00:24]} Rb4 {[%emt 0:00:27]}
33. g3 {[%emt 0:00:13]} f5 {[%emt 0:00:49]} 34. Kd3 {[%emt 0:01:01]} Kf7 {
[%emt 0:00:04]} 35. Kc3 {[%emt 0:00:49]} Re4 {[%emt 0:00:24]} 36. Kd3 {[%emt 0:
05:21]} Rb4 {[%emt 0:00:45]} 37. Kc3 {[%emt 0:00:13]} Re4 {[%emt 0:00:05]} 38.
Kd3 {[%emt 0:00:16]} Rb4 {[%emt 0:01:44]} 39. Kc3 {[%emt 0:00:13]} Re4 {[%emt
0:00:36]} 40. Kd3 1/2-1/2

[Event "ETCC Women 2013"]
[Site "Warsaw"]
[Date "2013.11.14"]
[Round "6"]
[White "Goryachkina, Aleksandra"]
[Black "Szczepkowska-Horowska, Karina"]
[Result "1/2-1/2"]
[ECO "A53"]
[WhiteElo "2438"]
[BlackElo "2382"]
[PlyCount "171"]
[EventDate "2013.??.??"]
[EventCountry "POL"]
[WhiteTeam "Russia"]
[BlackTeam "Poland"]
[WhiteTeamCountry "RUS"]
[BlackTeamCountry "POL"]
[TimeControl "40/5400+30:1800+30"]

1. d4 {[%emt 0:00:00]} Nf6 {[%emt 0:00:00]} 2. c4 {[%emt 0:00:00]} d6 {[%emt 0:
00:09]} 3. Nc3 {[%emt 0:04:51]} Nbd7 {[%emt 0:00:27]} 4. e4 {[%emt 0:04:00]} e5
{[%emt 0:00:17]} 5. Nf3 {[%emt 0:00:38]} g6 {[%emt 0:00:28]} 6. Be2 {[%emt 0:
02:40]} Bg7 {[%emt 0:00:37]} 7. Be3 {[%emt 0:03:48]} O-O {[%emt 0:01:10]} 8. d5
{[%emt 0:03:00]} Re8 {[%emt 0:04:49]} 9. Nd2 {[%emt 0:01:58]} Nc5 {[%emt 0:03:
43]} 10. b4 {[%emt 0:03:59]} Na6 {[%emt 0:00:08]} 11. a3 {[%emt 0:01:12]} c5 {
[%emt 0:01:04]} 12. dxc6 {[%emt 0:09:56]} bxc6 {[%emt 0:00:13]} 13. Nb3 {[%emt
0:03:18]} Be6 {[%emt 0:10:25]} 14. Na5 {[%emt 0:10:24]} c5 {[%emt 0:14:28]} 15.
Nc6 {[%emt 0:02:28]} Qd7 {[%emt 0:07:16]} 16. b5 {[%emt 0:00:25]} Nb8 {[%emt 0:
01:35]} 17. Nxb8 {[%emt 0:09:03]} Raxb8 {[%emt 0:01:46]} 18. O-O {[%emt 0:01:
40]} Rf8 {[%emt 0:05:33]} 19. Qd2 {[%emt 0:03:19]} Ne8 {[%emt 0:02:23]} 20.
Rfd1 {[%emt 0:02:57]} Qb7 {[%emt 0:03:05]} 21. Rab1 {[%emt 0:04:04]} f5 {[%emt
0:06:19]} 22. exf5 {[%emt 0:02:36]} gxf5 {[%emt 0:01:49]} 23. f3 {[%emt 0:01:
37]} Qf7 {[%emt 0:03:29]} 24. Nd5 {[%emt 0:01:36]} Bxd5 {[%emt 0:05:58]} 25.
Qxd5 {[%emt 0:03:33]} Qxd5 {[%emt 0:00:56]} 26. Rxd5 {[%emt 0:02:56]} Rf6 {
[%emt 0:01:04]} 27. a4 {[%emt 0:03:40]} Bf8 {[%emt 0:03:39]} 28. Rdd1 {[%emt 0:
02:52]} Nc7 {[%emt 0:03:32]} 29. g4 {[%emt 0:00:43]} Ne6 {[%emt 0:02:46]} 30.
Rf1 {[%emt 0:03:06]} Bh6 {[%emt 0:04:39]} 31. Bxh6 {[%emt 0:03:28]} Rxh6 {
[%emt 0:00:05]} 32. gxf5 {[%emt 0:01:02]} Nf4 {[%emt 0:04:02]} 33. Bd1 {[%emt
0:00:41]} Kf7 {[%emt 0:00:29]} 34. Kf2 {[%emt 0:02:36]} Rxh2+ {[%emt 0:00:42]}
35. Ke3 {[%emt 0:00:36]} d5 {[%emt 0:04:34]} 36. cxd5 {[%emt 0:00:25]} Nxd5+ {
[%emt 0:00:43]} 37. Kd3 {[%emt 0:00:16]} c4+ {[%emt 0:00:36]} 38. Kxc4 {[%emt
0:00:47]} Ne3+ {[%emt 0:00:03]} 39. Kb4 {[%emt 0:01:09]} Nxf1 {[%emt 0:02:25]}
40. Bb3+ {[%emt 0:00:00]} Kf6 {[%emt 0:00:00]} 41. Rxf1 {[%emt 0:00:21]} Kxf5 {
[%emt 0:00:58]} 42. Rc1 {[%emt 0:02:36]} Rb7 {[%emt 0:03:33]} 43. Bd5 {[%emt 0:
02:37]} Rd7 {[%emt 0:01:50]} 44. Be4+ {[%emt 0:01:01]} Kf4 {[%emt 0:01:28]} 45.
a5 {[%emt 0:01:34]} h5 {[%emt 0:04:19]} 46. Rc8 {[%emt 0:05:30]} h4 {[%emt 0:
03:55]} 47. Rf8+ {[%emt 0:02:27]} Ke3 {[%emt 0:01:10]} 48. Rh8 {[%emt 0:04:10]}
Kd4 {[%emt 0:02:43]} 49. Kb3 {[%emt 0:01:37]} h3 {[%emt 0:04:20]} 50. b6 {
[%emt 0:06:25]} axb6 {[%emt 0:00:14]} 51. a6 {[%emt 0:01:41]} Ra7 {[%emt 0:05:
44]} 52. Bb7 {[%emt 0:00:57]} Rh1 {[%emt 0:01:57]} 53. Kb2 {[%emt 0:01:28]} h2
{[%emt 0:00:57]} 54. Rh3 {[%emt 0:01:08]} b5 {[%emt 0:01:36]} 55. Ka2 {[%emt 0:
00:43]} Rg1 {[%emt 0:03:29]} 56. Rxh2 {[%emt 0:00:26]} Rg7 {[%emt 0:00:05]} 57.
Kb3 {[%emt 0:02:04]} Raxb7 {[%emt 0:00:45]} 58. axb7 {[%emt 0:00:01]} Rxb7 {
[%emt 0:00:05]} 59. Rh4+ {[%emt 0:02:04]} Kc5 {[%emt 0:01:39]} 60. Re4 {[%emt
0:00:55]} Kd5 {[%emt 0:00:07]} 61. Kb4 {[%emt 0:01:17]} Rc7 {[%emt 0:00:37]}
62. Re1 {[%emt 0:00:53]} Rf7 {[%emt 0:01:00]} 63. Re3 {[%emt 0:00:17]} Rb7 {
[%emt 0:00:43]} 64. Re4 {[%emt 0:00:28]} Rb8 {[%emt 0:00:28]} 65. Re1 {[%emt 0:
00:41]} Rf8 {[%emt 0:00:35]} 66. Re3 {[%emt 0:00:10]} Rf4+ {[%emt 0:00:26]} 67.
Kxb5 {[%emt 0:00:15]} Rd4 {[%emt 0:00:29]} 68. Kb6 {[%emt 0:00:57]} Rc4 {[%emt
0:00:18]} 69. Kb5 {[%emt 0:00:33]} Rd4 {[%emt 0:00:15]} 70. Kb6 {[%emt 0:00:05]
} Ke6 {[%emt 0:00:14]} 71. Kc5 {[%emt 0:00:37]} Kf5 {[%emt 0:00:12]} 72. Rb3 {
[%emt 0:01:05]} Kf4 {[%emt 0:00:13]} 73. Ra3 {[%emt 0:00:10]} Rd8 {[%emt 0:01:
14]} 74. Rb3 {[%emt 0:00:30]} Kf5 {[%emt 0:00:43]} 75. Re3 {[%emt 0:00:20]} Rd1
{[%emt 0:00:31]} 76. Kc4 {[%emt 0:00:40]} Ra1 {[%emt 0:00:20]} 77. Kd5 {[%emt
0:00:34]} Rd1+ {[%emt 0:00:19]} 78. Kc5 {[%emt 0:00:14]} Rd2 {[%emt 0:00:09]}
79. Kc4 {[%emt 0:00:23]} Rd4+ {[%emt 0:00:29]} 80. Kc5 {[%emt 0:00:08]} Ke6 {
[%emt 0:00:20]} 81. Re4 {[%emt 0:00:59]} Rd5+ {[%emt 0:01:17]} 82. Kc4 {[%emt
0:00:26]} Ra5 {[%emt 0:00:14]} 83. Kb4 {[%emt 0:00:18]} Ra8 {[%emt 0:00:18]}
84. f4 {[%emt 0:00:18]} Kf5 {[%emt 0:00:04]} 85. Rxe5+ {[%emt 0:00:05]} Kxf4 {
[%emt 0:00:02]} 86. Rd5 {[%emt 0:00:06]} 1/2-1/2